[Event "Titled Tuesday Blitz June 14 Late 2022"]
[White "Song, Michael"]
[Black "Yuan, Qingyu"]
[WhiteFideId "2613190"]
[BlackFideId "8609772"]
[WhiteElo "2274"]
[BlackElo "2359"]
[Result "0-1"]
[Round "05"]
[TimeControl "180+1"]
[Date "2022.06.14"]
[WhiteClock "0:00:02"]
[BlackClock "0:00:09"]

1. d4 {[%clk 0:03:00]}  d5 {[%clk 0:02:59]} 2. c4 {[%clk 0:02:59]}  e6 {[%clk 0:03:00]} 3. Nc3 {[%clk 0:02:59]}  Nf6 {[%clk 0:03:00]} 4. cxd5 {[%clk 0:02:59]}  exd5 {[%clk 0:03:01]} 5. Bg5 {[%clk 0:02:59]}  c6 {[%clk 0:03:01]} 6. e3 {[%clk 0:03:00]}  h6 {[%clk 0:03:02]} 7. Bh4 {[%clk 0:02:59]}  Be7 {[%clk 0:03:02]} 8. Bd3 {[%clk 0:02:58]}  O-O {[%clk 0:03:03]} 9. Qc2 {[%clk 0:02:57]}  Re8 {[%clk 0:03:03]} 10. O-O-O {[%clk 0:02:50]}  b5 {[%clk 0:02:51]} 11. Kb1 {[%clk 0:02:47]}  Nbd7 {[%clk 0:02:48]} 12. Nge2 {[%clk 0:02:32]}  Nb6 {[%clk 0:02:43]} 13. Rc1 {[%clk 0:02:21]}  a5 {[%clk 0:02:40]} 14. f3 {[%clk 0:02:01]}  a4 {[%clk 0:02:33]} 15. Bf2 {[%clk 0:01:50]}  b4 {[%clk 0:02:13]} 16. Nd1 {[%clk 0:01:44]}  Nc4 {[%clk 0:01:58]} 17. Bxc4 {[%clk 0:01:33]}  dxc4 {[%clk 0:01:59]} 18. Qxc4 {[%clk 0:01:31]}  Ba6 {[%clk 0:01:59]} 19. Qc2 {[%clk 0:01:27]}  b3 {[%clk 0:02:00]} 20. Qd2 {[%clk 0:01:27]}  bxa2+ {[%clk 0:01:49]} 21. Ka1 {[%clk 0:01:21]}  a3 {[%clk 0:01:39]} 22. b3 {[%clk 0:01:17]}  Rb8 {[%clk 0:01:33]} 23. Nf4 {[%clk 0:01:04]}  Rxb3 {[%clk 0:01:22]} 24. Qxa2 {[%clk 0:00:59]}  Rb6 {[%clk 0:00:46]} 25. e4 {[%clk 0:00:47]}  Qb8 {[%clk 0:00:44]} 26. Be3 {[%clk 0:00:36]}  Nd7 {[%clk 0:00:38]} 27. e5 {[%clk 0:00:32]}  Nxe5 {[%clk 0:00:26]} 28. dxe5 {[%clk 0:00:27]}  Qxe5+ {[%clk 0:00:27]} 29. Rc3 {[%clk 0:00:27]}  Bb4 {[%clk 0:00:18]} 30. Qd2 {[%clk 0:00:27]}  Bxc3+ {[%clk 0:00:15]} 31. Qxc3 {[%clk 0:00:27]}  Qxc3+ {[%clk 0:00:15]} 32. Nxc3 {[%clk 0:00:26]}  Rxe3 {[%clk 0:00:15]} 33. Ne4 {[%clk 0:00:25]}  Bc4 {[%clk 0:00:13]} 34. Rc1 {[%clk 0:00:24]}  Bd5 {[%clk 0:00:12]} 35. Nc3 {[%clk 0:00:16]}  Bb3 {[%clk 0:00:11]} 36. Nb1 {[%clk 0:00:13]}  a2 {[%clk 0:00:11]} 37. Nc3 {[%clk 0:00:12]}  g5 {[%clk 0:00:09]} 38. Nh5 {[%clk 0:00:10]}  Be6 {[%clk 0:00:09]} 39. Nf6+ {[%clk 0:00:09]}  Kg7 {[%clk 0:00:10]} 40. Nfe4 {[%clk 0:00:09]}  f5 {[%clk 0:00:09]} 41. Nc5 {[%clk 0:00:08]}  Bf7 {[%clk 0:00:10]} 42. N5a4 {[%clk 0:00:05]}  Rb4 {[%clk 0:00:09]} 43. Nb2 {[%clk 0:00:03]}  g4 {[%clk 0:00:07]} 44. fxg4 {[%clk 0:00:02]}  fxg4 {[%clk 0:00:08]} 45. Ncd1 {[%clk 0:00:03]}  Re1 {[%clk 0:00:08]} 46. Rxc6 {[%clk 0:00:02]}  Rxd1+ {[%clk 0:00:08]} 47. Nxd1 {[%clk 0:00:02]}  Rb1# {[%clk 0:00:09]} 0-1


[Site "https://www.chess.com"]

[Event "Titled Tuesday Blitz June 14 Late 2022"]
[White "Vifleemskaia, Svetlana"]
[Black "Toncheva, Nadya"]
[WhiteFideId "4129490"]
[BlackFideId "2924056"]
[WhiteElo "1929"]
[BlackElo "1888"]
[Result "0-1"]
[Round "05"]
[TimeControl "180+1"]
[Date "2022.06.15"]
[WhiteClock "0:00:05"]
[BlackClock "0:00:06"]

1. d4 {[%clk 0:03:00]}  Nf6 {[%clk 0:02:49]} 2. c4 {[%clk 0:03:00]}  e6 {[%clk 0:02:47]} 3. Nc3 {[%clk 0:03:00]}  c5 {[%clk 0:02:47]} 4. d5 {[%clk 0:02:59]}  exd5 {[%clk 0:02:48]} 5. cxd5 {[%clk 0:03:00]}  d6 {[%clk 0:02:49]} 6. e4 {[%clk 0:03:00]}  g6 {[%clk 0:02:44]} 7. Nf3 {[%clk 0:03:01]}  a6 {[%clk 0:02:44]} 8. a4 {[%clk 0:03:00]}  Bg4 {[%clk 0:02:45]} 9. Be2 {[%clk 0:03:00]}  Bxf3 {[%clk 0:02:45]} 10. Bxf3 {[%clk 0:03:00]}  Bg7 {[%clk 0:02:46]} 11. O-O {[%clk 0:03:00]}  O-O {[%clk 0:02:46]} 12. g3 {[%clk 0:03:00]}  Nbd7 {[%clk 0:02:36]} 13. Bg2 {[%clk 0:02:58]}  Rc8 {[%clk 0:02:30]} 14. f4 {[%clk 0:02:48]}  c4 {[%clk 0:02:24]} 15. Be3 {[%clk 0:02:47]}  Nc5 {[%clk 0:01:59]} 16. h3 {[%clk 0:02:31]}  Re8 {[%clk 0:01:54]} 17. e5 {[%clk 0:02:14]}  dxe5 {[%clk 0:01:48]} 18. f5 {[%clk 0:02:14]}  Nd3 {[%clk 0:01:37]} 19. fxg6 {[%clk 0:02:04]}  hxg6 {[%clk 0:01:32]} 20. Bg5 {[%clk 0:01:58]}  Qb6+ {[%clk 0:01:30]} 21. Kh2 {[%clk 0:01:56]}  Qxb2 {[%clk 0:01:11]} 22. Bxf6 {[%clk 0:01:33]}  Qxc3 {[%clk 0:01:03]} 23. Qf3 {[%clk 0:01:21]}  Rc7 {[%clk 0:00:52]} 24. d6 {[%clk 0:01:18]}  Rd7 {[%clk 0:00:51]} 25. Bxg7 {[%clk 0:01:17]}  Kxg7 {[%clk 0:00:52]} 26. Qf6+ {[%clk 0:01:16]}  Kh6 {[%clk 0:00:35]} 27. Qh4+ {[%clk 0:01:12]}  Kg7 {[%clk 0:00:32]} 28. Qf6+ {[%clk 0:01:12]}  Kh7 {[%clk 0:00:33]} 29. Be4 {[%clk 0:00:40]}  Qd2+ {[%clk 0:00:19]} 30. Kh1 {[%clk 0:00:38]}  Nc5 {[%clk 0:00:18]} 31. Rad1 {[%clk 0:00:19]}  Nxe4 {[%clk 0:00:10]} 32. Qh4+ {[%clk 0:00:19]}  Qh6 {[%clk 0:00:10]} 33. Qxe4 {[%clk 0:00:18]}  Qxh3+ {[%clk 0:00:10]} 34. Kg1 {[%clk 0:00:19]}  Qxg3+ {[%clk 0:00:10]} 35. Qg2 {[%clk 0:00:17]}  Qxg2+ {[%clk 0:00:09]} 36. Kxg2 {[%clk 0:00:17]}  Re6 {[%clk 0:00:06]} 37. Rc1 {[%clk 0:00:16]}  Rexd6 {[%clk 0:00:05]} 38. Rxc4 {[%clk 0:00:16]}  Rd2+ {[%clk 0:00:05]} 39. Kg3 {[%clk 0:00:15]}  f5 {[%clk 0:00:04]} 40. Rh1+ {[%clk 0:00:13]}  Kg7 {[%clk 0:00:04]} 41. Re1 {[%clk 0:00:08]}  R7d3+ {[%clk 0:00:04]} 42. Kh4 {[%clk 0:00:07]}  Rd4+ {[%clk 0:00:04]} 43. Rxd4 {[%clk 0:00:07]}  Rxd4+ {[%clk 0:00:05]} 44. Kg3 {[%clk 0:00:06]}  Kf6 {[%clk 0:00:06]} 45. Kf3 {[%clk 0:00:06]}  Rd3+ {[%clk 0:00:06]} 46. Ke2 {[%clk 0:00:06]}  Ra3 {[%clk 0:00:07]} 47. Rb1 {[%clk 0:00:06]}  Rxa4 {[%clk 0:00:07]} 48. Rxb7 {[%clk 0:00:05]}  Kg5 {[%clk 0:00:08]} 49. Rb6 {[%clk 0:00:05]}  e4 {[%clk 0:00:06]} 50. Ke3 {[%clk 0:00:05]}  Ra3+ {[%clk 0:00:06]} 51. Kd4 {[%clk 0:00:05]}  Rd3+ {[%clk 0:00:06]} 52. Kc4 {[%clk 0:00:06]}  Rd7 {[%clk 0:00:06]} 53. Rxa6 {[%clk 0:00:06]}  e3 {[%clk 0:00:07]} 54. Re6 {[%clk 0:00:05]}  f4 {[%clk 0:00:07]} 55. Re5+ {[%clk 0:00:06]}  Kg4 {[%clk 0:00:07]} 56. Re6 {[%clk 0:00:06]}  g5 {[%clk 0:00:06]} 57. Re5 {[%clk 0:00:06]}  Rd6 {[%clk 0:00:05]} 58. Kc3 {[%clk 0:00:07]}  Kf3 {[%clk 0:00:04]} 59. Rxg5 {[%clk 0:00:06]}  e2 {[%clk 0:00:05]} 60. Re5 {[%clk 0:00:06]}  Kf2 {[%clk 0:00:05]} 61. Kc2 {[%clk 0:00:05]}  e1=Q {[%clk 0:00:06]} 0-1


[Site "https://www.chess.com"]

[Event "Titled Tuesday Blitz June 14 Late 2022"]
[White "Yurasova, Daria"]
[Black "Yurovskykh, Oleksandr"]
[WhiteFideId "34146919"]
[BlackFideId "14134020"]
[WhiteElo "2021"]
[BlackElo "2292"]
[Result "0-1"]
[Round "05"]
[TimeControl "180+1"]
[Date "2022.06.15"]
[WhiteClock "0:00:02"]
[BlackClock "0:00:35"]

1. e4 {[%clk 0:03:00]}  d5 {[%clk 0:02:45]} 2. exd5 {[%clk 0:03:00]}  Qxd5 {[%clk 0:02:43]} 3. Nc3 {[%clk 0:03:01]}  Qd8 {[%clk 0:02:42]} 4. d4 {[%clk 0:03:01]}  Nf6 {[%clk 0:02:42]} 5. Nf3 {[%clk 0:03:01]}  Bg4 {[%clk 0:02:42]} 6. Bc4 {[%clk 0:02:58]}  e6 {[%clk 0:02:42]} 7. d5 {[%clk 0:02:45]}  Bb4 {[%clk 0:02:35]} 8. Bg5 {[%clk 0:02:16]}  h6 {[%clk 0:02:31]} 9. Bxf6 {[%clk 0:02:09]}  Qxf6 {[%clk 0:02:32]} 10. O-O {[%clk 0:02:09]}  Bxc3 {[%clk 0:02:21]} 11. bxc3 {[%clk 0:02:09]}  O-O {[%clk 0:01:57]} 12. dxe6 {[%clk 0:02:09]}  fxe6 {[%clk 0:01:47]} 13. Qd4 {[%clk 0:01:59]}  Bxf3 {[%clk 0:01:41]} 14. Qxf6 {[%clk 0:01:57]}  Rxf6 {[%clk 0:01:42]} 15. gxf3 {[%clk 0:01:55]}  Nd7 {[%clk 0:01:42]} 16. Rfe1 {[%clk 0:01:54]}  Nc5 {[%clk 0:01:42]} 17. Re3 {[%clk 0:01:36]}  Kf7 {[%clk 0:01:35]} 18. Rae1 {[%clk 0:01:30]}  Ke7 {[%clk 0:01:32]} 19. Kg2 {[%clk 0:01:21]}  Raf8 {[%clk 0:01:31]} 20. a3 {[%clk 0:00:36]}  b6 {[%clk 0:01:29]} 21. Ba2 {[%clk 0:00:36]}  Rd8 {[%clk 0:01:27]} 22. R1e2 {[%clk 0:00:31]}  Rd6 {[%clk 0:01:26]} 23. Kg3 {[%clk 0:00:26]}  a5 {[%clk 0:01:26]} 24. Kg2 {[%clk 0:00:26]}  g5 {[%clk 0:01:25]} 25. h4 {[%clk 0:00:25]}  gxh4 {[%clk 0:01:24]} 26. Kh3 {[%clk 0:00:24]}  Rf4 {[%clk 0:01:20]} 27. Kg2 {[%clk 0:00:16]}  Ra4 {[%clk 0:01:11]} 28. Kh3 {[%clk 0:00:10]}  Rxa3 {[%clk 0:01:07]} 29. Bc4 {[%clk 0:00:09]}  Ra4 {[%clk 0:01:07]} 30. Bb5 {[%clk 0:00:09]}  Rf4 {[%clk 0:01:07]} 31. Kg2 {[%clk 0:00:07]}  Rd8 {[%clk 0:01:03]} 32. Bc6 {[%clk 0:00:05]}  Rd1 {[%clk 0:00:51]} 33. Re5 {[%clk 0:00:02]}  a4 {[%clk 0:00:49]} 34. Bd5 {[%clk 0:00:02]}  Rf6 {[%clk 0:00:38]} 35. Bc4 {[%clk 0:00:02]}  a3 {[%clk 0:00:35]} 36. Rh5 {[%clk 0:00:02]}  Ra1 {[%clk 0:00:34]} 37. Rxh4 {[%clk 0:00:02]}  a2 {[%clk 0:00:35]} 38. Rh1 {[%clk 0:00:02]}  Rxh1 {[%clk 0:00:35]} 0-1


[Site "https://www.chess.com"]

[Event "Titled Tuesday Blitz June 14 Late 2022"]
[White "Bas Mas, Jose Joaquin"]
[Black "Fidalgo, Andre Neves"]
[WhiteFideId "22219064"]
[BlackFideId "1933620"]
[WhiteElo "2233"]
[BlackElo "2023"]
[Result "1-0"]
[Round "06"]
[TimeControl "180+1"]
[Date "2022.06.15"]
[WhiteClock "0:00:04"]
[BlackClock "0:00:03"]

1. e4 {[%clk 0:03:00]}  c5 {[%clk 0:02:59]} 2. Nc3 {[%clk 0:03:00]}  g6 {[%clk 0:02:58]} 3. f4 {[%clk 0:02:59]}  Bg7 {[%clk 0:02:57]} 4. Nf3 {[%clk 0:03:00]}  Nc6 {[%clk 0:02:53]} 5. Bb5 {[%clk 0:02:59]}  Nd4 {[%clk 0:02:53]} 6. a4 {[%clk 0:02:54]}  a6 {[%clk 0:02:46]} 7. Bc4 {[%clk 0:02:54]}  e6 {[%clk 0:02:41]} 8. O-O {[%clk 0:02:49]}  Ne7 {[%clk 0:02:40]} 9. d3 {[%clk 0:02:46]}  O-O {[%clk 0:02:40]} 10. Ba2 {[%clk 0:02:45]}  d5 {[%clk 0:02:37]} 11. Nxd4 {[%clk 0:02:31]}  cxd4 {[%clk 0:02:36]} 12. Ne2 {[%clk 0:02:29]}  dxe4 {[%clk 0:02:23]} 13. dxe4 {[%clk 0:02:28]}  Qb6 {[%clk 0:02:18]} 14. Kh1 {[%clk 0:02:27]}  Bd7 {[%clk 0:02:12]} 15. Bb3 {[%clk 0:02:22]}  Bc6 {[%clk 0:02:08]} 16. Qd3 {[%clk 0:02:21]}  Rad8 {[%clk 0:01:52]} 17. Bd2 {[%clk 0:02:20]}  Kh8 {[%clk 0:01:43]} 18. Rae1 {[%clk 0:01:45]}  f5 {[%clk 0:01:39]} 19. Ng3 {[%clk 0:01:39]}  Rde8 {[%clk 0:01:05]} 20. Bxe6 {[%clk 0:01:16]}  fxe4 {[%clk 0:01:02]} 21. Nxe4 {[%clk 0:01:14]}  Bxa4 {[%clk 0:00:53]} 22. Ng5 {[%clk 0:01:09]}  Bf6 {[%clk 0:00:15]} 23. Qh3 {[%clk 0:00:53]}  Bxg5 {[%clk 0:00:15]} 24. fxg5 {[%clk 0:00:54]}  Rxf1+ {[%clk 0:00:15]} 25. Rxf1 {[%clk 0:00:51]}  Nf5 {[%clk 0:00:11]} 26. Bxf5 {[%clk 0:00:45]}  gxf5 {[%clk 0:00:11]} 27. Qxf5 {[%clk 0:00:45]}  Qe6 {[%clk 0:00:09]} 28. Qd3 {[%clk 0:00:37]}  Qd5 {[%clk 0:00:08]} 29. c4 {[%clk 0:00:30]}  Qe5 {[%clk 0:00:05]} 30. Bf4 {[%clk 0:00:27]}  Qe4 {[%clk 0:00:05]} 31. Qg3 {[%clk 0:00:15]}  Bc6 {[%clk 0:00:05]} 32. h4 {[%clk 0:00:12]}  d3 {[%clk 0:00:05]} 33. Kh2 {[%clk 0:00:10]}  Qe2 {[%clk 0:00:05]} 34. Rf2 {[%clk 0:00:07]}  Qe1 {[%clk 0:00:05]} 35. Rd2 {[%clk 0:00:02]}  Qxg3+ {[%clk 0:00:01]} 36. Kxg3 {[%clk 0:00:03]}  Be4 {[%clk 0:00:01]} 37. Kf2 {[%clk 0:00:03]}  Bf5 {[%clk 0:00:02]} 38. g3 {[%clk 0:00:03]}  Kg8 {[%clk 0:00:03]} 39. Kf3 {[%clk 0:00:04]}  Re4 {[%clk 0:00:03]} 40. g4 {[%clk 0:00:04]}  Rxc4 {[%clk 0:00:03]} 41. gxf5 {[%clk 0:00:04]} 1-0


[Site "https://www.chess.com"]

[Event "Titled Tuesday Blitz June 14 Late 2022"]
[White "Beulen, Marcel"]
[Black "Kozin, Yuri"]
[WhiteFideId "1001450"]
[BlackFideId "4129920"]
[WhiteElo "2388"]
[BlackElo "2542"]
[Result "0-1"]
[Round "06"]
[TimeControl "180+1"]
[Date "2022.06.15"]
[WhiteClock "0:00:03"]
[BlackClock "0:00:07"]

1. e4 {[%clk 0:03:00]}  c5 {[%clk 0:03:00]} 2. Nf3 {[%clk 0:03:00]}  e6 {[%clk 0:02:58]} 3. b3 {[%clk 0:03:00]}  b6 {[%clk 0:02:58]} 4. Bb2 {[%clk 0:02:59]}  Bb7 {[%clk 0:02:59]} 5. Qe2 {[%clk 0:03:00]}  Nf6 {[%clk 0:02:59]} 6. Nc3 {[%clk 0:02:59]}  Be7 {[%clk 0:02:59]} 7. g3 {[%clk 0:02:59]}  O-O {[%clk 0:02:57]} 8. Bg2 {[%clk 0:02:59]}  Nc6 {[%clk 0:02:57]} 9. O-O {[%clk 0:02:59]}  d5 {[%clk 0:02:49]} 10. e5 {[%clk 0:02:58]}  Nd7 {[%clk 0:02:49]} 11. d3 {[%clk 0:02:57]}  Qc7 {[%clk 0:02:48]} 12. Rfe1 {[%clk 0:02:56]}  Rac8 {[%clk 0:02:45]} 13. Rad1 {[%clk 0:02:45]}  a6 {[%clk 0:02:36]} 14. Nb1 {[%clk 0:02:18]}  b5 {[%clk 0:02:34]} 15. Nbd2 {[%clk 0:02:17]}  Nb4 {[%clk 0:02:21]} 16. c3 {[%clk 0:02:14]}  Nc6 {[%clk 0:02:17]} 17. a3 {[%clk 0:02:10]}  a5 {[%clk 0:02:17]} 18. d4 {[%clk 0:02:08]}  Ba6 {[%clk 0:02:15]} 19. Qe3 {[%clk 0:02:06]}  Qb6 {[%clk 0:02:12]} 20. Rc1 {[%clk 0:01:36]}  Rc7 {[%clk 0:02:00]} 21. h4 {[%clk 0:01:27]}  Rfc8 {[%clk 0:01:59]} 22. Bf1 {[%clk 0:01:18]}  b4 {[%clk 0:01:57]} 23. axb4 {[%clk 0:01:17]}  cxd4 {[%clk 0:01:52]} 24. cxd4 {[%clk 0:01:10]}  Bxf1 {[%clk 0:01:40]} 25. bxa5 {[%clk 0:01:03]}  Nxa5 {[%clk 0:01:07]} 26. Nxf1 {[%clk 0:00:47]}  Qxb3 {[%clk 0:00:58]} 27. Qxb3 {[%clk 0:00:44]}  Nxb3 {[%clk 0:00:59]} 28. Rxc7 {[%clk 0:00:43]}  Rxc7 {[%clk 0:01:00]} 29. Re2 {[%clk 0:00:33]}  Nb6 {[%clk 0:00:57]} 30. Ne3 {[%clk 0:00:19]}  Bb4 {[%clk 0:00:52]} 31. Kg2 {[%clk 0:00:19]}  h6 {[%clk 0:00:52]} 32. Rc2 {[%clk 0:00:18]}  Rxc2 {[%clk 0:00:47]} 33. Nxc2 {[%clk 0:00:19]}  Ba5 {[%clk 0:00:42]} 34. Ba3 {[%clk 0:00:16]}  Nc4 {[%clk 0:00:42]} 35. Be7 {[%clk 0:00:15]}  Bb6 {[%clk 0:00:39]} 36. Kf1 {[%clk 0:00:15]}  Nca5 {[%clk 0:00:27]} 37. Ke2 {[%clk 0:00:14]}  Nc6 {[%clk 0:00:27]} 38. Bc5 {[%clk 0:00:08]}  Bxc5 {[%clk 0:00:22]} 39. dxc5 {[%clk 0:00:08]}  Nxc5 {[%clk 0:00:23]} 40. Ncd4 {[%clk 0:00:08]}  Ne7 {[%clk 0:00:18]} 41. Nd2 {[%clk 0:00:06]}  Nd7 {[%clk 0:00:16]} 42. f4 {[%clk 0:00:06]}  h5 {[%clk 0:00:15]} 43. Kf3 {[%clk 0:00:06]}  Nc5 {[%clk 0:00:14]} 44. N2b3 {[%clk 0:00:06]}  Nxb3 {[%clk 0:00:13]} 45. Nxb3 {[%clk 0:00:07]}  Nc6 {[%clk 0:00:14]} 46. g4 {[%clk 0:00:06]}  g6 {[%clk 0:00:13]} 47. gxh5 {[%clk 0:00:05]}  gxh5 {[%clk 0:00:14]} 48. f5 {[%clk 0:00:05]}  exf5 {[%clk 0:00:13]} 49. Kf4 {[%clk 0:00:05]}  Ne7 {[%clk 0:00:13]} 50. Nd4 {[%clk 0:00:02]}  Kg7 {[%clk 0:00:13]} 51. e6 {[%clk 0:00:03]}  fxe6 {[%clk 0:00:10]} 52. Nxe6+ {[%clk 0:00:02]}  Kf6 {[%clk 0:00:11]} 53. Nd4 {[%clk 0:00:03]}  Ng6+ {[%clk 0:00:10]} 54. Kf3 {[%clk 0:00:02]}  Nxh4+ {[%clk 0:00:10]} 55. Kg3 {[%clk 0:00:03]}  Ng6 {[%clk 0:00:10]} 56. Kf3 {[%clk 0:00:03]}  Ke5 {[%clk 0:00:10]} 57. Ne2 {[%clk 0:00:03]}  d4 {[%clk 0:00:09]} 58. Ng3 {[%clk 0:00:03]}  h4 {[%clk 0:00:08]} 59. Ne2 {[%clk 0:00:03]}  d3 {[%clk 0:00:08]} 60. Nf4 {[%clk 0:00:03]}  Nxf4 {[%clk 0:00:07]} 0-1


[Site "https://www.chess.com"]

[Event "Titled Tuesday Blitz June 14 Late 2022"]
[White "Bolanos, Fernando"]
[Black "Vivas Zamora, Fabian Ernesto"]
[WhiteFideId "3304094"]
[BlackFideId "3902480"]
[WhiteElo "2048"]
[BlackElo "2014"]
[Result "1-0"]
[Round "06"]
[TimeControl "180+1"]
[Date "2022.06.15"]
[WhiteClock "0:00:10"]
[BlackClock "0:00:08"]

1. e4 {[%clk 0:03:00]}  e5 {[%clk 0:02:57]} 2. Nf3 {[%clk 0:03:00]}  Nc6 {[%clk 0:02:57]} 3. Bb5 {[%clk 0:03:00]}  f5 {[%clk 0:02:57]} 4. d3 {[%clk 0:03:00]}  fxe4 {[%clk 0:02:58]} 5. dxe4 {[%clk 0:03:01]}  Nf6 {[%clk 0:02:59]} 6. Nbd2 {[%clk 0:03:01]}  Bc5 {[%clk 0:02:57]} 7. O-O {[%clk 0:03:02]}  O-O {[%clk 0:02:55]} 8. a4 {[%clk 0:03:00]}  a6 {[%clk 0:02:41]} 9. Bd3 {[%clk 0:03:00]}  d6 {[%clk 0:02:39]} 10. Qe2 {[%clk 0:02:59]}  Nh5 {[%clk 0:02:30]} 11. Nb3 {[%clk 0:02:59]}  Bg4 {[%clk 0:02:23]} 12. Kh1 {[%clk 0:01:49]}  Qf6 {[%clk 0:01:58]} 13. Be3 {[%clk 0:01:35]}  Nf4 {[%clk 0:01:33]} 14. Bxf4 {[%clk 0:01:25]}  Qxf4 {[%clk 0:01:34]} 15. Nxc5 {[%clk 0:01:15]}  dxc5 {[%clk 0:01:35]} 16. Qe3 {[%clk 0:01:14]}  Bxf3 {[%clk 0:01:33]} 17. gxf3 {[%clk 0:01:12]}  Nd4 {[%clk 0:01:18]} 18. Rad1 {[%clk 0:00:37]}  Qxf3+ {[%clk 0:00:53]} 19. Qxf3 {[%clk 0:00:37]}  Rxf3 {[%clk 0:00:53]} 20. c3 {[%clk 0:00:34]}  Nc6 {[%clk 0:00:43]} 21. Kg2 {[%clk 0:00:34]}  Rf6 {[%clk 0:00:33]} 22. Bc4+ {[%clk 0:00:34]}  Kf8 {[%clk 0:00:12]} 23. Rd7 {[%clk 0:00:34]}  Rc8 {[%clk 0:00:11]} 24. Rfd1 {[%clk 0:00:20]}  Na5 {[%clk 0:00:06]} 25. Be2 {[%clk 0:00:18]}  Rg6+ {[%clk 0:00:04]} 26. Kf1 {[%clk 0:00:17]}  c4 {[%clk 0:00:03]} 27. R1d5 {[%clk 0:00:12]}  b6 {[%clk 0:00:02]} 28. Rxe5 {[%clk 0:00:11]}  Rf6 {[%clk 0:00:01]} 29. Bg4 {[%clk 0:00:10]}  Nc6 {[%clk 0:00:01]} 30. Red5 {[%clk 0:00:06]}  Rd8 {[%clk 0:00:01]} 31. Rxd8+ {[%clk 0:00:07]}  Nxd8 {[%clk 0:00:01]} 32. Rxd8+ {[%clk 0:00:07]}  Ke7 {[%clk 0:00:02]} 33. Rd7+ {[%clk 0:00:08]}  Ke8 {[%clk 0:00:03]} 34. Rxg7 {[%clk 0:00:08]}  Rh6 {[%clk 0:00:02]} 35. Rxc7 {[%clk 0:00:08]}  Rh4 {[%clk 0:00:02]} 36. h3 {[%clk 0:00:08]}  Rh6 {[%clk 0:00:02]} 37. Rc8+ {[%clk 0:00:07]}  Ke7 {[%clk 0:00:02]} 38. Rxc4 {[%clk 0:00:08]}  Rd6 {[%clk 0:00:02]} 39. Rd4 {[%clk 0:00:08]}  Rc6 {[%clk 0:00:02]} 40. f4 {[%clk 0:00:09]}  Kf6 {[%clk 0:00:02]} 41. e5+ {[%clk 0:00:09]}  Kg7 {[%clk 0:00:03]} 42. f5 {[%clk 0:00:09]}  Rc5 {[%clk 0:00:04]} 43. Rd7+ {[%clk 0:00:09]}  Kh6 {[%clk 0:00:04]} 44. e6 {[%clk 0:00:08]}  Kg5 {[%clk 0:00:05]} 45. Rd4 {[%clk 0:00:08]}  Re5 {[%clk 0:00:05]} 46. Kf2 {[%clk 0:00:08]}  h5 {[%clk 0:00:05]} 47. Bf3 {[%clk 0:00:07]}  Kxf5 {[%clk 0:00:05]} 48. Re4 {[%clk 0:00:06]}  Rxe4 {[%clk 0:00:05]} 49. Bxe4+ {[%clk 0:00:07]}  Kxe6 {[%clk 0:00:06]} 50. h4 {[%clk 0:00:07]}  Ke5 {[%clk 0:00:06]} 51. Ke3 {[%clk 0:00:08]}  Kf6 {[%clk 0:00:06]} 52. Kf4 {[%clk 0:00:08]}  a5 {[%clk 0:00:06]} 53. Bf3 {[%clk 0:00:08]}  Ke6 {[%clk 0:00:06]} 54. Bxh5 {[%clk 0:00:07]}  Kd5 {[%clk 0:00:07]} 55. b3 {[%clk 0:00:08]}  Kc5 {[%clk 0:00:07]} 56. Be8 {[%clk 0:00:08]}  b5 {[%clk 0:00:07]} 57. Bxb5 {[%clk 0:00:08]}  Kd5 {[%clk 0:00:07]} 58. h5 {[%clk 0:00:09]}  Kd6 {[%clk 0:00:08]} 59. h6 {[%clk 0:00:10]} 1-0


[Site "https://www.chess.com"]

[Event "Titled Tuesday Blitz June 14 Late 2022"]
[White "Bongo Akanga Ndjila, Barthelemy"]
[Black "Johnson, Ben"]
[WhiteFideId "10609431"]
[BlackFideId "2010917"]
[WhiteElo "1768"]
[BlackElo "2152"]
[Result "1-0"]
[Round "06"]
[TimeControl "180+1"]
[Date "2022.06.15"]
[WhiteClock "0:00:13"]
[BlackClock "0:00:05"]

1. d4 {[%clk 0:03:00]}  Nf6 {[%clk 0:02:48]} 2. c4 {[%clk 0:02:59]}  e6 {[%clk 0:02:48]} 3. Nc3 {[%clk 0:02:58]}  Bb4 {[%clk 0:02:48]} 4. g3 {[%clk 0:02:58]}  d5 {[%clk 0:02:43]} 5. Bg2 {[%clk 0:02:57]}  O-O {[%clk 0:02:42]} 6. Nf3 {[%clk 0:02:57]}  dxc4 {[%clk 0:02:39]} 7. Ne5 {[%clk 0:02:55]}  Nd5 {[%clk 0:02:33]} 8. Bd2 {[%clk 0:02:50]}  Bxc3 {[%clk 0:02:32]} 9. bxc3 {[%clk 0:02:48]}  b5 {[%clk 0:02:31]} 10. a4 {[%clk 0:02:47]}  c6 {[%clk 0:02:26]} 11. axb5 {[%clk 0:02:42]}  cxb5 {[%clk 0:02:27]} 12. O-O {[%clk 0:02:41]}  Bb7 {[%clk 0:02:24]} 13. Qb1 {[%clk 0:02:38]}  a6 {[%clk 0:02:22]} 14. Nxc4 {[%clk 0:02:37]}  Qc7 {[%clk 0:02:09]} 15. Na5 {[%clk 0:02:36]}  Nxc3 {[%clk 0:02:00]} 16. Bxc3 {[%clk 0:02:27]}  Bxg2 {[%clk 0:01:59]} 17. Kxg2 {[%clk 0:02:12]}  Qxc3 {[%clk 0:01:58]} 18. Qe4 {[%clk 0:02:07]}  Ra7 {[%clk 0:01:52]} 19. Rfc1 {[%clk 0:02:05]}  Qb4 {[%clk 0:01:50]} 20. Rcb1 {[%clk 0:01:58]}  Qd6 {[%clk 0:01:47]} 21. e3 {[%clk 0:01:51]}  f5 {[%clk 0:01:38]} 22. Qd3 {[%clk 0:01:49]}  e5 {[%clk 0:01:35]} 23. Nb3 {[%clk 0:01:48]}  Nd7 {[%clk 0:01:26]} 24. Nd2 {[%clk 0:01:41]}  exd4 {[%clk 0:01:12]} 25. exd4 {[%clk 0:01:40]}  Nc5 {[%clk 0:01:07]} 26. Qc3 {[%clk 0:01:34]}  Ne4 {[%clk 0:00:52]} 27. Nxe4 {[%clk 0:01:33]}  fxe4 {[%clk 0:00:53]} 28. Rxb5 {[%clk 0:01:32]}  Raf7 {[%clk 0:00:24]} 29. Rb2 {[%clk 0:01:30]}  h5 {[%clk 0:00:23]} 30. h4 {[%clk 0:01:29]}  Rd7 {[%clk 0:00:18]} 31. Rd1 {[%clk 0:01:26]}  Qd5 {[%clk 0:00:16]} 32. Qe3 {[%clk 0:01:25]}  Kh7 {[%clk 0:00:14]} 33. Qg5 {[%clk 0:01:03]}  Rf5 {[%clk 0:00:14]} 34. Qe3 {[%clk 0:00:57]}  Rf3 {[%clk 0:00:14]} 35. Qg5 {[%clk 0:00:57]}  Qxg5 {[%clk 0:00:12]} 36. hxg5 {[%clk 0:00:56]}  Rf5 {[%clk 0:00:12]} 37. Rb6 {[%clk 0:00:51]}  a5 {[%clk 0:00:09]} 38. g6+ {[%clk 0:00:42]}  Kh6 {[%clk 0:00:10]} 39. Ra6 {[%clk 0:00:34]}  Rg5 {[%clk 0:00:09]} 40. Kf1 {[%clk 0:00:31]}  Rgd5 {[%clk 0:00:09]} 41. Ke2 {[%clk 0:00:29]}  Rxd4 {[%clk 0:00:09]} 42. Rxd4 {[%clk 0:00:28]}  Rxd4 {[%clk 0:00:10]} 43. Rxa5 {[%clk 0:00:29]}  Kxg6 {[%clk 0:00:10]} 44. Ke3 {[%clk 0:00:29]}  Rb4 {[%clk 0:00:09]} 45. Re5 {[%clk 0:00:28]}  Kf6 {[%clk 0:00:04]} 46. Rxh5 {[%clk 0:00:27]}  Rb3+ {[%clk 0:00:04]} 47. Ke2 {[%clk 0:00:26]}  g6 {[%clk 0:00:03]} 48. Ra5 {[%clk 0:00:25]}  Ke6 {[%clk 0:00:03]} 49. g4 {[%clk 0:00:20]}  Kf6 {[%clk 0:00:03]} 50. g5+ {[%clk 0:00:19]}  Ke6 {[%clk 0:00:01]} 51. Rc5 {[%clk 0:00:18]}  Kd6 {[%clk 0:00:01]} 52. Ra5 {[%clk 0:00:18]}  Rc3 {[%clk 0:00:01]} 53. Ra6+ {[%clk 0:00:17]}  Ke5 {[%clk 0:00:02]} 54. Rxg6 {[%clk 0:00:17]}  Rc2+ {[%clk 0:00:02]} 55. Ke3 {[%clk 0:00:17]}  Rc3+ {[%clk 0:00:03]} 56. Ke2 {[%clk 0:00:17]}  Rc2+ {[%clk 0:00:03]} 57. Ke1 {[%clk 0:00:18]}  Rc3 {[%clk 0:00:03]} 58. Rg7 {[%clk 0:00:17]}  Rf3 {[%clk 0:00:04]} 59. Rg8 {[%clk 0:00:16]}  Kf5 {[%clk 0:00:04]} 60. g6 {[%clk 0:00:17]}  e3 {[%clk 0:00:04]} 61. fxe3 {[%clk 0:00:15]}  Rxe3+ {[%clk 0:00:05]} 62. Kf2 {[%clk 0:00:16]}  Rg3 {[%clk 0:00:06]} 63. Kxg3 {[%clk 0:00:15]}  Kf6 {[%clk 0:00:05]} 64. Kg4 {[%clk 0:00:13]} 1-0


[Site "https://www.chess.com"]